[Event "44th Chess Olympiad Open 2022"]
[Site "Chennai"]
[Date "2022.08.08"]
[Round "10.15"]
[White "Mchedlishvili, Mikheil"]
[Black "Cruz, Cristhian"]
[Result "1/2-1/2"]
[WhiteElo "2593"]
[BlackElo "2579"]
[Annotator "RC"]
[PlyCount "88"]
[EventDate "2022.??.??"]
[TimeControl "60"]

1. d4 {[%emt 0:00:07]} Nf6 {[%emt 0:00:32]} 2. c4 {[%emt 0:00:34]} e6 {[%emt 0:
00:00]} 3. Nc3 {[%emt 0:00:27]} d5 {[%emt 0:00:37]} 4. cxd5 {[%emt 0:02:12]}
exd5 {[%emt 0:02:57]} 5. Bg5 {[%emt 0:00:48]} Nbd7 {[%emt 0:02:00]} 6. e3 {
[%emt 0:00:51]} Be7 {[%emt 0:02:16]} 7. Bd3 {[%emt 0:01:06]} c6 {[%emt 0:00:44]
} 8. Nge2 {[%emt 0:02:00]} Nh5 {[%emt 0:02:20]} 9. Bxe7 {[%emt 0:01:32]} Qxe7 {
[%emt 0:00:03]} 10. O-O {[%emt 0:02:50]} g6 {[%emt 0:02:37]} 11. Qd2 {[%emt 0:
00:00]} O-O {[%emt 0:06:30]} 12. f3 {[%emt 0:03:30]} Nb6 {[%emt 0:02:47]} 13.
e4 {[%emt 0:04:56]} Be6 {[%emt 0:02:49]} 14. Rfe1 {[%emt 0:10:27]} Rad8 {
[%emt 0:07:40]} 15. e5 {[%emt 0:10:18]} f6 {[%emt 0:05:32]} 16. Ng3 {[%emt 0:
00:00]} Ng7 {[%emt 0:05:21]} 17. Rad1 {[%emt 0:02:55]} fxe5 {[%emt 0:15:14]}
18. Rxe5 {[%emt 0:02:00]} Qf6 {[%emt 0:01:14]} 19. Qf2 {[%emt 0:11:59]} Nc8 {
[%emt 0:04:57]} 20. Ree1 {[%emt 0:11:40]} Nd6 {[%emt 0:02:02]} 21. Bc2 {
[%emt 0:05:19]} Rde8 {[%emt 0:08:04]} 22. a4 {[%emt 0:08:18]} h5 {[%emt 0:00:
00]} 23. Nf1 {[%emt 0:01:20]} g5 {[%emt 0:01:09]} 24. Qg3 {[%emt 0:03:49]} Bf5
{[%emt 0:06:08]} 25. Bb3 {[%emt 0:00:19]} Bg6 {[%emt 0:02:58]} 26. Rxe8 {
[%emt 0:02:04]} Rxe8 {[%emt 0:00:17]} 27. Qf2 {[%emt 0:00:17]} Ne6 {[%emt 0:00:
00]} 28. Ne2 {[%emt 0:01:10]} Kg7 {[%emt 0:02:59]} 29. Ne3 {[%emt 0:02:31]} Nf4
{[%emt 0:03:10]} 30. Nxf4 {[%emt 0:02:28]} gxf4 {[%emt 0:00:03]} 31. Nf1 {
[%emt 0:00:36]} h4 {[%emt 0:02:58]} 32. Bc2 {[%emt 0:00:37]} Bxc2 {[%emt 0:00:
00]} 33. Qxc2 {[%emt 0:00:03]} h3 {[%emt 0:00:29]} 34. g3 {[%emt 0:03:07]} fxg3
{[%emt 0:03:53]} 35. Nxg3 {[%emt 0:00:33]} Qxf3 {[%emt 0:00:59]} 36. Rf1 {
[%emt 0:00:30]} Qe3+ {[%emt 0:00:22]} 37. Kh1 {[%emt 0:00:53]} Re6 {[%emt 0:00:
00]} 38. Qd1 {[%emt 0:00:35]} Rg6 {[%emt 0:00:54]} 39. Qh5 {[%emt 0:00:18]} Qe6
{[%emt 0:00:26]} 40. Qh4 {[%emt 0:00:23]} Kg8 {[%emt 0:00:29]} 41. Qd8+ {
[%emt 0:03:31]} Qe8 {[%emt 0:17:17]} 42. Qh4 {[%emt 0:01:04]} Qe6 {[%emt 0:00:
00]} 43. Qd8+ {[%emt 0:00:06]} Qe8 {[%emt 0:07:27]} 44. Qh4 {[%emt 0:00:08]}
Qe6 {[%emt 0:01:08]} 1/2-1/2

[Event "44th Chess Olympiad Open 2022"]
[Site "Chennai"]
[Date "2022.08.08"]
[Round "10.15"]
[White "Pantsulaia, Levan"]
[Black "Vera Siguenas, Deivy"]
[Result "1-0"]
[WhiteElo "2581"]
[BlackElo "2503"]
[Annotator "RC"]
[PlyCount "53"]
[EventDate "2022.??.??"]
[TimeControl "60"]

1. Nf3 {[%emt 0:00:07]} Nf6 {[%emt 0:00:05]} 2. g3 {[%emt 0:00:20]} d5 {
[%emt 0:00:13]} 3. Bg2 {[%emt 0:00:14]} Bf5 {[%emt 0:00:24]} 4. c4 {[%emt 0:00:
00]} c6 {[%emt 0:00:13]} 5. Qb3 {[%emt 0:00:34]} Qb6 {[%emt 0:00:48]} 6. d3 {
[%emt 0:00:10]} e6 {[%emt 0:01:43]} 7. Be3 {[%emt 0:00:20]} Qb4+ {[%emt 0:00:
00]} 8. Nbd2 {[%emt 0:01:29]} Nbd7 {[%emt 0:01:18]} 9. O-O {[%emt 0:12:18]} h6
{[%emt 0:08:32]} 10. Bd4 {[%emt 0:16:30]} Qxb3 {[%emt 0:00:00]} 11. axb3 {
[%emt 0:01:24]} a6 {[%emt 0:01:53]} 12. Bc3 {[%emt 0:00:55]} Be7 {[%emt 0:00:
00]} 13. e4 {[%emt 0:14:15]} dxe4 {[%emt 0:01:47]} 14. dxe4 {[%emt 0:00:14]}
Bh7 {[%emt 0:01:33]} 15. Rfe1 {[%emt 0:06:21]} Nc5 {[%emt 0:04:58]} 16. Ne5 {
[%emt 0:00:07]} Rd8 {[%emt 0:08:29]} 17. Re2 {[%emt 0:13:38]} Nd3 {[%emt 0:00:
00]} 18. Nxd3 {[%emt 0:00:32]} Rxd3 {[%emt 0:00:05]} 19. b4 {[%emt 0:01:03]}
O-O {[%emt 0:00:37]} 20. e5 {[%emt 0:00:37]} Ne8 {[%emt 0:00:59]} 21. Nb3 {
[%emt 0:00:45]} Nc7 {[%emt 0:06:56]} 22. Na5 {[%emt 0:00:11]} Rb8 {[%emt 0:00:
00]} 23. Ree1 {[%emt 0:00:47]} Bd8 {[%emt 0:03:50]} 24. Red1 {[%emt 0:00:39]}
Ne8 {[%emt 0:02:46]} 25. Nxb7 {[%emt 0:00:37]} Rxb7 {[%emt 0:00:03]} 26. Rxd3 {
[%emt 0:00:08]} Bxd3 {[%emt 0:00:05]} 27. Rd1 {[%emt 0:00:21]} 1-0

[Event "44th Chess Olympiad Open 2022"]
[Site "Chennai"]
[Date "2022.08.08"]
[Round "10.15"]
[White "Cordova, Emilio"]
[Black "Jobava, Baadur"]
[Result "1-0"]
[WhiteElo "2549"]
[BlackElo "2585"]
[Annotator "RC"]
[PlyCount "91"]
[EventDate "2022.??.??"]
[TimeControl "60"]

1. Nf3 {[%emt 0:00:06]} d5 {[%emt 0:00:22]} 2. g3 {[%emt 0:01:14]} Nc6 {
[%emt 0:00:11]} 3. d4 {[%emt 0:00:06]} Bf5 {[%emt 0:00:05]} 4. c4 {[%emt 0:00:
00]} e6 {[%emt 0:00:32]} 5. Bg2 {[%emt 0:00:38]} Bb4+ {[%emt 0:03:07]} 6. Bd2 {
[%emt 0:02:05]} Nge7 {[%emt 0:01:06]} 7. O-O {[%emt 0:09:16]} O-O {[%emt 0:00:
00]} 8. a3 {[%emt 0:02:29]} Bxd2 {[%emt 0:00:12]} 9. Nbxd2 {[%emt 0:00:05]} a5
{[%emt 0:00:51]} 10. Rc1 {[%emt 0:00:48]} h6 {[%emt 0:00:13]} 11. Re1 {[%emt 0:
00:00]} Qb8 {[%emt 0:02:41]} 12. e3 {[%emt 0:01:52]} a4 {[%emt 0:00:52]} 13.
Nh4 {[%emt 0:06:05]} Bh7 {[%emt 0:01:38]} 14. cxd5 {[%emt 0:05:35]} exd5 {
[%emt 0:00:08]} 15. Rc5 {[%emt 0:00:03]} Rd8 {[%emt 0:03:10]} 16. Qh5 {[%emt 0:
00:00]} g5 {[%emt 0:22:17]} 17. e4 {[%emt 0:18:07]} gxh4 {[%emt 0:13:13]} 18.
exd5 {[%emt 0:00:04]} b6 {[%emt 0:08:56]} 19. Rxc6 {[%emt 0:23:58]} Nxc6 {
[%emt 0:00:12]} 20. Be4 {[%emt 0:00:03]} Re8 {[%emt 0:25:02]} 21. Bxh7+ {
[%emt 0:04:07]} Kxh7 {[%emt 0:00:32]} 22. Ne4 {[%emt 0:11:12]} Qd8 {[%emt 0:00:
00]} 23. Qxf7+ {[%emt 0:00:06]} Kh8 {[%emt 0:00:02]} 24. Qg6 {[%emt 0:00:31]}
Re7 {[%emt 0:00:04]} 25. Qxh6+ {[%emt 0:01:09]} Rh7 {[%emt 0:00:52]} 26. Qxc6 {
[%emt 0:00:04]} Rb8 {[%emt 0:00:44]} 27. Nf6 {[%emt 0:01:00]} Re7 {[%emt 0:00:
00]} 28. Re5 {[%emt 0:00:22]} Rxe5 {[%emt 0:01:12]} 29. dxe5 {[%emt 0:00:05]}
Qe7 {[%emt 0:00:33]} 30. Nd7 {[%emt 0:00:31]} Rc8 {[%emt 0:00:42]} 31. Qh6+ {
[%emt 0:00:39]} Qh7 {[%emt 0:00:05]} 32. Qf6+ {[%emt 0:00:09]} Kg8 {[%emt 0:00:
00]} 33. Qe6+ {[%emt 0:00:32]} Kg7 {[%emt 0:00:21]} 34. Qe7+ {[%emt 0:01:53]}
Kh8 {[%emt 0:00:07]} 35. Qf6+ {[%emt 0:00:04]} Kg8 {[%emt 0:00:05]} 36. Qg5+ {
[%emt 0:00:03]} Qg7 {[%emt 0:01:29]} 37. Nf6+ {[%emt 0:00:05]} Kf8 {[%emt 0:00:
00]} 38. Qxh4 {[%emt 0:00:10]} Kf7 {[%emt 0:00:32]} 39. Qxa4 {[%emt 0:00:09]}
Rd8 {[%emt 0:00:14]} 40. Qf4 {[%emt 0:00:54]} Ke7 {[%emt 0:00:47]} 41. Qf5 {
[%emt 0:30:32]} Qf7 {[%emt 0:30:26]} 42. Qg5 {[%emt 0:00:00]} Ra8 {[%emt 0:00:
00]} 43. Nd7+ {[%emt 0:00:00]} Ke8 {[%emt 0:00:00]} 44. e6 {[%emt 0:00:00]} Qf3
{[%emt 0:00:00]} 45. Qg8+ {[%emt 0:00:00]} Ke7 {[%emt 0:00:00]} 46. Qxa8 {
[%emt 0:00:00]} 1-0

[Event "44th Chess Olympiad Open 2022"]
[Site "Chennai"]
[Date "2022.08.08"]
[Round "10.15"]
[White "Terry, Renato"]
[Black "Paichadze, Luka"]
[Result "1/2-1/2"]
[WhiteElo "2502"]
[BlackElo "2561"]
[Annotator "RC"]
[PlyCount "25"]
[EventDate "2022.??.??"]
[TimeControl "60"]

1. d4 {[%emt 0:00:06]} Nf6 {[%emt 0:00:05]} 2. Nf3 {[%emt 0:00:09]} e6 {
[%emt 0:00:08]} 3. c4 {[%emt 0:00:07]} b6 {[%emt 0:00:26]} 4. g3 {[%emt 0:00:
00]} Bb7 {[%emt 0:00:11]} 5. Bg2 {[%emt 0:00:16]} Bb4+ {[%emt 0:00:09]} 6. Bd2
{[%emt 0:01:39]} a5 {[%emt 0:00:33]} 7. O-O {[%emt 0:00:06]} O-O {[%emt 0:00:
00]} 8. Bg5 {[%emt 0:03:26]} Be7 {[%emt 0:01:15]} 9. Qc2 {[%emt 0:05:12]} Be4 {
[%emt 0:08:21]} 10. Qd2 {[%emt 0:02:24]} Bb7 {[%emt 0:00:59]} 11. Qc2 {[%emt 0:
00:00]} Be4 {[%emt 0:00:15]} 12. Qd2 {[%emt 0:00:28]} Bb7 {[%emt 0:00:09]} 13.
Qc2 {[%emt 0:00:33]} 1/2-1/2

[Event "44th Chess Olympiad Open 2022"]
[Site "Chennai"]
[Date "2022.08.08"]
[Round "10.16"]
[White "Theodorou, Nikolas"]
[Black "Stefansson, Hannes"]
[Result "1/2-1/2"]
[WhiteElo "2575"]
[BlackElo "2541"]
[Annotator "RC"]
[PlyCount "80"]
[EventDate "2022.??.??"]
[TimeControl "60"]

1. Nf3 {[%emt 0:00:07]} d5 {[%emt 0:00:39]} 2. d4 {[%emt 0:00:11]} Nf6 {
[%emt 0:00:24]} 3. c4 {[%emt 0:00:15]} e6 {[%emt 0:00:47]} 4. g3 {[%emt 0:00:
00]} Be7 {[%emt 0:00:59]} 5. Bg2 {[%emt 0:00:07]} O-O {[%emt 0:00:47]} 6. O-O {
[%emt 0:00:27]} dxc4 {[%emt 0:01:17]} 7. Qc2 {[%emt 0:03:47]} b5 {[%emt 0:00:
00]} 8. a4 {[%emt 0:00:14]} Bb7 {[%emt 0:00:52]} 9. axb5 {[%emt 0:02:16]} a6 {
[%emt 0:00:43]} 10. bxa6 {[%emt 0:01:50]} Nxa6 {[%emt 0:00:22]} 11. Qxc4 {
[%emt 0:00:10]} Bd5 {[%emt 0:00:37]} 12. Qc3 {[%emt 0:00:23]} c5 {[%emt 0:00:
00]} 13. Be3 {[%emt 0:00:29]} Ne4 {[%emt 0:00:53]} 14. Qe1 {[%emt 0:00:38]} Nb4
{[%emt 0:00:45]} 15. Rxa8 {[%emt 0:00:29]} Qxa8 {[%emt 0:00:19]} 16. Nc3 {
[%emt 0:00:23]} Nxc3 {[%emt 0:01:04]} 17. bxc3 {[%emt 0:00:17]} Nc2 {[%emt 0:
00:00]} 18. Qd2 {[%emt 0:00:57]} Nxe3 {[%emt 0:00:14]} 19. Qxe3 {[%emt 0:00:06]
} h6 {[%emt 0:00:56]} 20. Qf4 {[%emt 0:02:50]} Bg5 {[%emt 0:02:32]} 21. Qg4 {
[%emt 0:04:42]} Bf6 {[%emt 0:00:31]} 22. c4 {[%emt 0:18:24]} Bxc4 {[%emt 0:00:
00]} 23. Ne5 {[%emt 0:12:37]} Qa2 {[%emt 0:03:02]} 24. Bf3 {[%emt 0:25:19]}
Bxe5 {[%emt 0:07:36]} 25. dxe5 {[%emt 0:00:03]} Rb8 {[%emt 0:14:15]} 26. Rc1 {
[%emt 0:15:51]} Rb1 {[%emt 0:02:08]} 27. Rxb1 {[%emt 0:00:47]} Qxb1+ {[%emt 0:
00:00]} 28. Kg2 {[%emt 0:00:03]} Qc2 {[%emt 0:01:49]} 29. h4 {[%emt 0:00:10]}
g6 {[%emt 0:08:55]} 30. Kh2 {[%emt 0:05:50]} Bb5 {[%emt 0:00:56]} 31. Kg2 {
[%emt 0:00:32]} Qd2 {[%emt 0:05:03]} 32. Qf4 {[%emt 0:03:56]} Qxf4 {[%emt 0:00:
00]} 33. gxf4 {[%emt 0:00:02]} f6 {[%emt 0:00:36]} 34. Kf1 {[%emt 0:01:51]} c4
{[%emt 0:04:14]} 35. Ke1 {[%emt 0:00:22]} c3 {[%emt 0:00:40]} 36. Kd1 {[%emt 0:
00:00]} Ba4+ {[%emt 0:00:14]} 37. Kc1 {[%emt 0:00:02]} fxe5 {[%emt 0:08:32]}
38. fxe5 {[%emt 0:00:02]} Kf7 {[%emt 0:01:25]} 39. Bg4 {[%emt 0:00:59]} g5 {
[%emt 0:00:46]} 40. hxg5 {[%emt 0:00:15]} hxg5 {[%emt 0:00:17]} 1/2-1/2

[Event "44th Chess Olympiad Open 2022"]
[Site "Chennai"]
[Date "2022.08.08"]
[Round "10.16"]
[White "Gretarsson, Hjorvar Steinn"]
[Black "Mastrovasilis, Dimitrios"]
[Result "1/2-1/2"]
[WhiteElo "2563"]
[BlackElo "2599"]
[Annotator "RC"]
[PlyCount "62"]
[EventDate "2022.??.??"]
[TimeControl "60"]

1. d4 {[%emt 0:00:03]} d5 {[%emt 0:00:11]} 2. Nf3 {[%emt 0:00:04]} Nf6 {
[%emt 0:00:08]} 3. g3 {[%emt 0:00:04]} e6 {[%emt 0:01:00]} 4. Bg2 {[%emt 0:00:
00]} b5 {[%emt 0:02:56]} 5. O-O {[%emt 0:00:05]} Be7 {[%emt 0:00:20]} 6. a4 {
[%emt 0:00:04]} b4 {[%emt 0:00:15]} 7. c4 {[%emt 0:00:57]} bxc3 {[%emt 0:00:31]
} 8. bxc3 {[%emt 0:00:08]} Bb7 {[%emt 0:04:28]} 9. Ne5 {[%emt 0:10:05]} Nbd7 {
[%emt 0:14:02]} 10. c4 {[%emt 0:06:58]} c5 {[%emt 0:00:59]} 11. Ba3 {[%emt 0:
00:00]} Rc8 {[%emt 0:05:17]} 12. Nxd7 {[%emt 0:14:30]} Qxd7 {[%emt 0:00:30]}
13. dxc5 {[%emt 0:03:52]} Bxc5 {[%emt 0:07:03]} 14. Qb3 {[%emt 0:05:46]} O-O {
[%emt 0:06:06]} 15. Rd1 {[%emt 0:06:07]} Bxa3 {[%emt 0:17:27]} 16. Nxa3 {
[%emt 0:00:10]} Bc6 {[%emt 0:00:10]} 17. Nb5 {[%emt 0:03:13]} a6 {[%emt 0:00:
00]} 18. cxd5 {[%emt 0:02:06]} Bxd5 {[%emt 0:00:40]} 19. Bxd5 {[%emt 0:01:28]}
axb5 {[%emt 0:00:28]} 20. Bf3 {[%emt 0:01:13]} bxa4 {[%emt 0:00:11]} 21. Rxa4 {
[%emt 0:00:56]} Qc7 {[%emt 0:02:07]} 22. Rb4 {[%emt 0:01:49]} Rb8 {[%emt 0:00:
00]} 23. Qc4 {[%emt 0:02:55]} Qxc4 {[%emt 0:02:35]} 24. Rxc4 {[%emt 0:00:05]}
Rfc8 {[%emt 0:00:54]} 25. Rdc1 {[%emt 0:00:21]} Rxc4 {[%emt 0:00:12]} 26. Rxc4
{[%emt 0:00:04]} h6 {[%emt 0:00:53]} 27. h4 {[%emt 0:00:07]} Kf8 {[%emt 0:00:
00]} 28. Kg2 {[%emt 0:00:08]} Rd8 {[%emt 0:00:17]} 29. Rc5 {[%emt 0:02:15]} Ke7
{[%emt 0:02:44]} 30. Ra5 {[%emt 0:00:27]} Rd7 {[%emt 0:00:45]} 31. g4 {[%emt 0:
00:00]} Rc7 {[%emt 0:00:17]} 1/2-1/2

[Event "44th Chess Olympiad Open 2022"]
[Site "Chennai"]
[Date "2022.08.08"]
[Round "10.16"]
[White "Ioannidis, Evgenios"]
[Black "Gretarsson, Helgi Ass"]
[Result "1-0"]
[WhiteElo "2459"]
[BlackElo "2472"]
[Annotator "RC"]
[PlyCount "109"]
[EventDate "2022.??.??"]
[TimeControl "60"]

1. d4 {[%emt 0:00:08]} d5 {[%emt 0:00:08]} 2. c4 {[%emt 0:00:20]} c6 {[%emt 0:
00:00]} 3. Nc3 {[%emt 0:00:55]} Nf6 {[%emt 0:05:22]} 4. cxd5 {[%emt 0:00:29]}
cxd5 {[%emt 0:00:11]} 5. Bf4 {[%emt 0:00:08]} Nc6 {[%emt 0:01:13]} 6. e3 {
[%emt 0:00:16]} a6 {[%emt 0:08:55]} 7. Be2 {[%emt 0:00:49]} Bf5 {[%emt 0:12:03]
} 8. Nf3 {[%emt 0:00:53]} e6 {[%emt 0:00:29]} 9. Qb3 {[%emt 0:00:36]} Ra7 {
[%emt 0:12:58]} 10. Ne5 {[%emt 0:00:37]} Nxe5 {[%emt 0:01:39]} 11. Bxe5 {
[%emt 0:00:12]} Nd7 {[%emt 0:00:07]} 12. O-O {[%emt 0:01:36]} Qb6 {[%emt 0:00:
00]} 13. Rfc1 {[%emt 0:09:01]} Qxb3 {[%emt 0:04:05]} 14. axb3 {[%emt 0:00:06]}
Nxe5 {[%emt 0:00:03]} 15. Nb5 {[%emt 0:04:59]} Nc6 {[%emt 0:01:49]} 16. Nxa7 {
[%emt 0:00:29]} Nxa7 {[%emt 0:00:02]} 17. Rc7 {[%emt 0:00:08]} Bd6 {[%emt 0:00:
00]} 18. Rxb7 {[%emt 0:00:09]} Nc8 {[%emt 0:05:44]} 19. g4 {[%emt 0:05:43]} Bg6
{[%emt 0:00:00]} 20. Rxa6 {[%emt 0:04:53]} O-O {[%emt 0:00:00]} 21. h4 {
[%emt 0:13:56]} h5 {[%emt 0:00:00]} 22. g5 {[%emt 0:01:10]} e5 {[%emt 0:00:00]}
23. Rd7 {[%emt 0:03:38]} exd4 {[%emt 0:00:01]} 24. exd4 {[%emt 0:01:04]} Bf4 {
[%emt 0:00:28]} 25. Bf3 {[%emt 0:01:50]} Bf5 {[%emt 0:07:17]} 26. Rxd5 {
[%emt 0:01:03]} g6 {[%emt 0:02:44]} 27. b4 {[%emt 0:01:56]} Re8 {[%emt 0:00:52]
} 28. Kg2 {[%emt 0:01:25]} Re1 {[%emt 0:01:43]} 29. Ra8 {[%emt 0:01:27]} Bd3 {
[%emt 0:01:08]} 30. Rxc8+ {[%emt 0:00:57]} Kg7 {[%emt 0:00:00]} 31. Kh3 {
[%emt 0:02:31]} Rg1 {[%emt 0:00:53]} 32. Bg2 {[%emt 0:00:07]} Be2 {[%emt 0:00:
00]} 33. f3 {[%emt 0:01:39]} Bd3 {[%emt 0:00:17]} 34. Rcc5 {[%emt 0:22:33]} Rd1
{[%emt 0:00:37]} 35. Rc3 {[%emt 0:04:32]} Bb1 {[%emt 0:00:09]} 36. Rc6 {
[%emt 0:03:00]} Rxd4 {[%emt 0:01:21]} 37. Rf6 {[%emt 0:01:17]} Rxb4 {[%emt 0:
00:00]} 38. Rxf4 {[%emt 0:00:45]} Rxf4 {[%emt 0:00:01]} 39. Rb5 {[%emt 0:00:37]
} Bd3 {[%emt 0:01:26]} 40. Rb8 {[%emt 0:01:05]} Rf5 {[%emt 0:00:34]} 41. Kg3 {
[%emt 0:34:58]} Bb5 {[%emt 0:13:41]} 42. b4 {[%emt 0:00:00]} Rd5 {[%emt 0:00:
00]} 43. Bh3 {[%emt 0:00:00]} Bc4 {[%emt 0:02:17]} 44. Rb7 {[%emt 0:00:00]} Kf8
{[%emt 0:06:09]} 45. Bd7 {[%emt 0:00:00]} Rd6 {[%emt 0:01:35]} 46. Rc7 {
[%emt 0:00:00]} Bd5 {[%emt 0:01:46]} 47. Kf4 {[%emt 0:00:00]} Rb6 {[%emt 0:00:
00]} 48. b5 {[%emt 0:00:00]} Bb7 {[%emt 0:00:39]} 49. Ke3 {[%emt 0:07:44]} Bd5
{[%emt 0:05:48]} 50. Kd4 {[%emt 0:00:23]} Bxf3 {[%emt 0:00:05]} 51. Kc5 {
[%emt 0:00:05]} Rb8 {[%emt 0:00:06]} 52. b6 {[%emt 0:00:36]} Bb7 {[%emt 0:00:
00]} 53. Bc6 {[%emt 0:00:14]} Ba6 {[%emt 0:00:15]} 54. Ra7 {[%emt 0:00:42]} Bc8
{[%emt 0:00:12]} 55. Bd5 {[%emt 0:00:04]} 1-0

[Event "44th Chess Olympiad Open 2022"]
[Site "Chennai"]
[Date "2022.08.08"]
[Round "10.16"]
[White "Kjartansson, Gudmundur"]
[Black "Banikas, Hristos"]
[Result "1/2-1/2"]
[WhiteElo "2448"]
[BlackElo "2598"]
[Annotator "RC"]
[PlyCount "175"]
[EventDate "2022.??.??"]
[TimeControl "60"]

1. c4 {[%emt 0:00:05]} e5 {[%emt 0:00:25]} 2. g3 {[%emt 0:00:11]} Nf6 {[%emt 0:
00:00]} 3. Bg2 {[%emt 0:00:20]} d5 {[%emt 0:00:06]} 4. cxd5 {[%emt 0:00:04]}
Nxd5 {[%emt 0:00:05]} 5. Nc3 {[%emt 0:02:50]} Nb6 {[%emt 0:00:05]} 6. Nf3 {
[%emt 0:00:14]} Nc6 {[%emt 0:00:08]} 7. O-O {[%emt 0:00:09]} Be7 {[%emt 0:00:
00]} 8. Rb1 {[%emt 0:00:33]} a5 {[%emt 0:06:59]} 9. d3 {[%emt 0:01:08]} O-O {
[%emt 0:00:04]} 10. Be3 {[%emt 0:01:39]} Re8 {[%emt 0:00:39]} 11. Rc1 {[%emt 0:
00:00]} Be6 {[%emt 0:13:00]} 12. Na4 {[%emt 0:07:47]} Nd5 {[%emt 0:12:11]} 13.
Bc5 {[%emt 0:02:39]} Bd6 {[%emt 0:00:12]} 14. Re1 {[%emt 0:08:26]} Ra6 {
[%emt 0:05:13]} 15. e4 {[%emt 0:08:17]} Nb6 {[%emt 0:00:43]} 16. Bxd6 {[%emt 0:
00:00]} cxd6 {[%emt 0:00:39]} 17. Nc3 {[%emt 0:02:30]} Bg4 {[%emt 0:01:27]} 18.
h3 {[%emt 0:05:18]} Bxf3 {[%emt 0:00:05]} 19. Bxf3 {[%emt 0:00:29]} Nd7 {
[%emt 0:05:19]} 20. Nb5 {[%emt 0:07:39]} Nf8 {[%emt 0:07:37]} 21. Bg4 {[%emt 0:
00:00]} g6 {[%emt 0:00:30]} 22. h4 {[%emt 0:00:21]} h5 {[%emt 0:00:30]} 23. Bh3
{[%emt 0:00:07]} Rb6 {[%emt 0:02:21]} 24. a4 {[%emt 0:00:58]} Nh7 {[%emt 0:00:
00]} 25. Rc4 {[%emt 0:13:49]} Nf6 {[%emt 0:03:12]} 26. Bg2 {[%emt 0:03:52]} Qe7
{[%emt 0:04:36]} 27. Qd2 {[%emt 0:01:43]} Kg7 {[%emt 0:00:02]} 28. Rec1 {
[%emt 0:02:55]} Rd8 {[%emt 0:01:51]} 29. Qe3 {[%emt 0:01:32]} Ra6 {[%emt 0:00:
00]} 30. d4 {[%emt 0:00:58]} d5 {[%emt 0:05:49]} 31. exd5 {[%emt 0:01:32]} Nxd5
{[%emt 0:00:37]} 32. Bxd5 {[%emt 0:00:25]} Rxd5 {[%emt 0:00:03]} 33. Qe4 {
[%emt 0:00:16]} Rd7 {[%emt 0:02:00]} 34. d5 {[%emt 0:02:33]} Nd4 {[%emt 0:00:
00]} 35. Nxd4 {[%emt 0:09:49]} exd4 {[%emt 0:00:05]} 36. Qxd4+ {[%emt 0:00:28]}
Qf6 {[%emt 0:00:36]} 37. Qxf6+ {[%emt 0:01:41]} Kxf6 {[%emt 0:00:06]} 38. Rc5 {
[%emt 0:00:44]} Rad6 {[%emt 0:00:27]} 39. Rxa5 {[%emt 0:00:33]} Rxd5 {[%emt 0:
00:00]} 40. Rxd5 {[%emt 0:00:32]} Rxd5 {[%emt 0:00:03]} 41. Rc7 {[%emt 0:14:26]
} Rd4 {[%emt 0:01:29]} 42. Rxb7 {[%emt 0:01:25]} Rxa4 {[%emt 0:00:04]} 43. Kg2
{[%emt 0:00:40]} Rc4 {[%emt 0:00:35]} 44. Kf3 {[%emt 0:02:34]} Rc2 {[%emt 0:00:
00]} 45. Ke3 {[%emt 0:00:40]} Ke6 {[%emt 0:02:55]} 46. Rb4 {[%emt 0:00:39]} f6
{[%emt 0:03:45]} 47. Re4+ {[%emt 0:05:56]} Kf7 {[%emt 0:15:08]} 48. b4 {
[%emt 0:01:35]} g5 {[%emt 0:00:06]} 49. Rd4 {[%emt 0:01:02]} Rb2 {[%emt 0:00:
00]} 50. Rc4 {[%emt 0:00:22]} Ke6 {[%emt 0:02:53]} 51. hxg5 {[%emt 0:06:12]}
fxg5 {[%emt 0:00:08]} 52. Kf3 {[%emt 0:00:34]} Rb3+ {[%emt 0:09:31]} 53. Kg2 {
[%emt 0:01:42]} Kf5 {[%emt 0:03:55]} 54. Rc5+ {[%emt 0:00:21]} Kg6 {[%emt 0:00:
00]} 55. b5 {[%emt 0:00:14]} g4 {[%emt 0:01:09]} 56. Kf1 {[%emt 0:00:17]} Rb2 {
[%emt 0:03:07]} 57. Ke1 {[%emt 0:00:08]} Kh6 {[%emt 0:00:06]} 58. Rf5 {[%emt 0:
00:00]} Kg6 {[%emt 0:00:15]} 59. Re5 {[%emt 0:00:01]} Kh6 {[%emt 0:00:12]} 60.
Rd5 {[%emt 0:00:02]} Kg6 {[%emt 0:00:08]} 61. Rc5 {[%emt 0:00:01]} Kh6 {
[%emt 0:00:06]} 62. Rc6+ {[%emt 0:01:34]} Kg5 {[%emt 0:01:32]} 63. Rb6 {
[%emt 0:00:17]} Kf5 {[%emt 0:09:57]} 64. Rb8 {[%emt 0:00:31]} Kg6 {[%emt 0:00:
00]} 65. b6 {[%emt 0:00:18]} Kg7 {[%emt 0:00:04]} 66. b7 {[%emt 0:00:28]} Rb1+
{[%emt 0:00:57]} 67. Kd2 {[%emt 0:00:05]} Rb3 {[%emt 0:00:20]} 68. Kc2 {
[%emt 0:00:05]} Rb6 {[%emt 0:00:07]} 69. Kd3 {[%emt 0:00:05]} Rb2 {[%emt 0:00:
00]} 70. Kd4 {[%emt 0:00:17]} Kh7 {[%emt 0:00:29]} 71. Ke4 {[%emt 0:01:11]} Kg7
{[%emt 0:00:06]} 72. Kf5 {[%emt 0:02:31]} Rxf2+ {[%emt 0:00:08]} 73. Kg5 {
[%emt 0:00:07]} Rb2 {[%emt 0:00:06]} 74. Kxh5 {[%emt 0:00:09]} Rb1 {[%emt 0:00:
00]} 75. Kxg4 {[%emt 0:00:14]} Rb2 {[%emt 0:00:04]} 76. Kf5 {[%emt 0:00:36]}
Rb1 {[%emt 0:00:07]} 77. g4 {[%emt 0:00:03]} Rb2 {[%emt 0:00:08]} 78. Kf4 {
[%emt 0:00:15]} Rb1 {[%emt 0:00:06]} 79. Ke5 {[%emt 0:00:16]} Rb2 {[%emt 0:00:
00]} 80. Kd6 {[%emt 0:00:11]} Rd2+ {[%emt 0:00:23]} 81. Kc5 {[%emt 0:00:04]}
Rc2+ {[%emt 0:00:05]} 82. Kd4 {[%emt 0:00:06]} Rb2 {[%emt 0:00:06]} 83. g5 {
[%emt 0:00:01]} Rb1 {[%emt 0:00:06]} 84. Kc3 {[%emt 0:00:14]} Rb6 {[%emt 0:00:
00]} 85. g6 {[%emt 0:00:04]} Rb1 {[%emt 0:00:06]} 86. Kd4 {[%emt 0:00:22]} Rb2
{[%emt 0:00:12]} 87. Kc3 {[%emt 0:00:02]} Rb1 {[%emt 0:00:05]} 88. Kd4 {
[%emt 0:00:03]} 1/2-1/2

[Event "44th Chess Olympiad Open 2022"]
[Site "Chennai"]
[Date "2022.08.08"]
[Round "10.17"]
[White "Supi, Luis Paulo"]
[Black "Hansen, Eric"]
[Result "1/2-1/2"]
[WhiteElo "2603"]
[BlackElo "2606"]
[Annotator "RC"]
[PlyCount "60"]
[EventDate "2022.??.??"]
[TimeControl "60"]

1. e4 {[%emt 0:00:01]} e5 {[%emt 0:01:00]} 2. Nf3 {[%emt 0:00:11]} Nf6 {
[%emt 0:00:59]} 3. Nxe5 {[%emt 0:00:34]} d6 {[%emt 0:00:17]} 4. Nf3 {[%emt 0:
00:00]} Nxe4 {[%emt 0:00:17]} 5. d4 {[%emt 0:00:38]} d5 {[%emt 0:01:51]} 6. Bd3
{[%emt 0:00:04]} Bf5 {[%emt 0:04:21]} 7. O-O {[%emt 0:00:13]} Be7 {[%emt 0:00:
00]} 8. Re1 {[%emt 0:00:34]} O-O {[%emt 0:01:24]} 9. Nbd2 {[%emt 0:00:13]} Nd6
{[%emt 0:01:16]} 10. Nf1 {[%emt 0:00:21]} c6 {[%emt 0:02:13]} 11. Bf4 {[%emt 0:
00:00]} Bxd3 {[%emt 0:01:55]} 12. Qxd3 {[%emt 0:00:08]} Na6 {[%emt 0:00:14]}
13. Re2 {[%emt 0:19:34]} Nc7 {[%emt 0:07:18]} 14. c3 {[%emt 0:10:05]} Ne6 {
[%emt 0:06:39]} 15. Be5 {[%emt 0:02:35]} Re8 {[%emt 0:01:20]} 16. Rae1 {
[%emt 0:02:40]} Bf8 {[%emt 0:02:53]} 17. N1d2 {[%emt 0:03:40]} Ng5 {[%emt 0:00:
00]} 18. Bxd6 {[%emt 0:18:22]} Rxe2 {[%emt 0:03:10]} 19. Rxe2 {[%emt 0:00:19]}
Bxd6 {[%emt 0:03:19]} 20. g3 {[%emt 0:00:47]} Nxf3+ {[%emt 0:03:51]} 21. Nxf3 {
[%emt 0:00:15]} Qd7 {[%emt 0:00:29]} 22. Qe3 {[%emt 0:10:55]} f6 {[%emt 0:00:
00]} 23. Kg2 {[%emt 0:00:47]} Kf8 {[%emt 0:06:29]} 24. Qd3 {[%emt 0:03:34]} g6
{[%emt 0:01:33]} 25. Qe3 {[%emt 0:04:28]} Re8 {[%emt 0:00:13]} 26. Qxe8+ {
[%emt 0:00:30]} Qxe8 {[%emt 0:00:07]} 27. Rxe8+ {[%emt 0:00:04]} Kxe8 {[%emt 0:
00:00]} 28. Ne1 {[%emt 0:01:23]} Ke7 {[%emt 0:00:13]} 29. Kf3 {[%emt 0:00:07]}
Ke6 {[%emt 0:00:19]} 30. Nc2 {[%emt 0:00:04]} Kf5 {[%emt 0:00:39]} 1/2-1/2